Workbook

Sheet 邳州分公司
A1: 收料登记表填报 日期 ：2019 年 4 月 29 日 填表人 ：李凤
B2: 单位：江苏大力神管桩有限公司
A3: 序号 | B3: 到厂时间 | C3: 送料人相关信息 | I3: 物品相关信息（参数指标等） | U3: 结算信息 | X3: 检验员 | Y3: 过磅员 | Z3: 备注
B4: 时 分 | C4: 车号 | D4: 车主姓名 （客户） | E4: 司机姓名 | F4: 司机手机号 | G4: 所属车队 | H4: 磅单单号 | I4: 入库单号 | J4: 品名 | K4: 规格 | L4: 毛重t | M4: 皮重t | N4: 净重t | O4: 含水率% | P4: 含泥量% | Q4: 细度模数 | R4: 级配区/颗粒级配 | S4: 压碎值% | T4: 扣杂质t | U4: 结算重量 | V4: 单价/元 | W4: 金额/元
A5: 1 | B5: 14:40:00 | C5: 鲁QV8954 | D5: 孙立 | E5: 刘东起 | F5: 13921762980 | G5: 李海洋 | H5: 13167 | I5: WIN0050313 | J5: 石子 | K5: 1-2# | L5: 102.36 | M5: 23.6 | N5: =L5-M5 -> 78.76 | R5: 良好 | S5: 7 | T5: 1.06 | U5: =N5-T5 -> 77.7 | V5: 98 | W5: =U5*V5 -> 7614.6 | X5: 陈金芳 | Y5: 马娜
A6: 2 | B6: 17:27:00 | C6: 鲁QV8530 | D6: 孙立 | E6: 蒋学武 | F6: 17772280398 | G6: 李海洋 | H6: 13171 | I6: WIN0050313 | J6: 石子 | K6: 1-2# | L6: 97.02 | M6: 22.44 | N6: 74.58 | R6: 良好 | S6: 7 | T6: 1.08 | U6: 73.5 | V6: 98 | W6: =U6*V6 -> 7203 | X6: 杨家辉 | Y6: 马娜
A7: 3 | B7: 17:38:00 | C7: 鲁QV8991 | D7: 孙立 | E7: 江万磊 | F7: 13913466223 | G7: 李海洋 | H7: 13172 | I7: WIN0050313 | J7: 石子 | K7: 1-2# | L7: 101.18 | M7: 23.24 | N7: 77.94 | R7: 良好 | S7: 7 | T7: 1.04 | U7: 76.9 | V7: 98 | W7: =U7*V7 -> 7536.2 | X7: 杨家辉 | Y7: 马娜
A8: 4 | B8: 23:46:00 | C8: 苏C1T507 | D8: 戴春宇 | E8: 祁建辉 | F8: 18751646723 | G8: 李海洋 | H8: 13175 | I8: WIN0050313 | J8: 石子 | K8: 1-2# | L8: 106.76 | M8: 23.46 | N8: 83.3 | R8: 良好 | S8: 7 | T8: 1 | U8: 82.3 | V8: 98 | W8: =U8*V8 -> 8065.4 | X8: 杨家辉 | Y8: 马娜
A9: 5 | B9: 05:18:00 | C9: 鲁Q562BG | D9: 魏辉 | E9: 魏辉 | F9: 15252200168 | G9: 丁庆余 | H9: 13176 | I9: WIN0050312 | J9: 石子 | K9: 1-2# | L9: 101.36 | M9: 22.68 | N9: 78.68 | R9: 含石粉、碎石 | S9: 8 | T9: 2.08 | U9: 76.6 | V9: 98 | W9: =U9*V9 -> 7506.8 | X9: 杨家辉 | Y9: 马娜
N12: =SUM(N5:N11) -> 393.26 | U12: =SUM(U5:U11) -> 387 | W12: =SUM(W5:W11) -> 37926

Sheet 巨野分公司
A1: 收料登记表填报 日期 2019年 4 月 29 日 填表人 ：杨振华
B2: 单位：江苏大力神管桩有限公司巨野分公司
A3: 序号 | B3: 到厂时间 | C3: 送料人相关信息 | H3: 物品相关信息（参数指标等） | T3: 结算信息 | W3: 检验员 | X3: 过磅员 | Y3: 备注
B4: 时 分 | C4: 车号 | D4: 车主姓名 | E4: 司机姓名 | F4: 司机手机号 | G4: 所属车队 | H4: 入库单号 | I4: 品名 | J4: 规格 | K4: 毛重 | L4: 皮重 | M4: 净重 | N4: 含水率% | O4: 含泥量% | P4: 细度模数 | Q4: 级配区 | R4: 压碎值 | S4: 扣杂质t | T4: 结算重量 | U4: 单价 | V4: 金额
A5: 1 | B5: 06:00:00 | C5: 鲁H56H26 | D5: 李福军 | E5: 杨金喜 | F5: 18264782088 | G5: 巨野中联 | H5: 013460 | I5: 水泥 | J5: PO42.5 | K5: 48.65 | L5: 15.04 | M5: =K5-L5 -> 33.61 | S5: 0.30% | T5: 33.5 | U5: 535 | V5: =T5*U5 -> 17922.5 | W5: 冯海英 | X5: 聂恒光
A6: 2 | B6: 06:35:00 | C6: 鲁RM2138 | D6: 刘德法 | E6: 刘起平 | F6: 13395408996 | G6: 刘德法 | H6: 013461 | I6: 钢棒 | J6: &9.0 | K6: 50.56 | L6: 15.81 | M6: 34.75 | T6: 34.73 | U6: 4860 | V6: 168787.8 | W6: 冯海英 | X6: 聂恒光
A7: 3 | B7: 06:38:00 | C7: 鲁RN9829 | D7: 魏翔远 | E7: 魏翔远 | F7: 15854038599 | G7: 英良运输 | H7: 013462 | I7: 石子 | J7: 1--2 | K7: 49.11 | L7: 16.19 | M7: 32.92 | S7: 0.1T | T7: 32.8 | U7: 97 | V7: 3181.6 | W7: 冯海英 | X7: 聂恒光
A8: 4 | B8: 06:40:00 | C8: 鲁RM2498 | D8: 魏庆如 | E8: 崔保东 | F8: 18953075722 | G8: 英良运输 | H8: 013463 | I8: 石子 | J8: 1--2 | K8: 50.39 | L8: 16.04 | M8: 34.35 | S8: 0.1T | T8: 34.2 | U8: 97 | V8: 3317.4 | W8: 冯海英 | X8: 聂恒光
A9: 5 | B9: 09:24:00 | C9: 鲁RN5188 | D9: 李斌 | E9: 安孔青 | F9: 15163023899 | G9: 李广坤 | H9: 013464 | I9: 石子 | J9: 1--2 | K9: 27.01 | L9: 8.62 | M9: 18.39 | S9: 0.2T | T9: 18.1 | U9: 97 | V9: 1755.7 | W9: 冯海英 | X9: 聂恒光
A10: 6 | B10: 09:26:00 | C10: 鲁RL7377 | D10: 李斌 | E10: 常云龙 | F10: 18264007774 | G10: 李广坤 | H10: 013465 | I10: 石子 | J10: 1--2 | K10: 26.32 | L10: 8.63 | M10: 17.69 | S10: 0.2T | T10: 17.4 | U10: 97 | V10: 1687.8 | W10: 冯海英 | X10: 聂恒光
A11: 7 | B11: 09:48:00 | C11: 鲁H22H87 | D11: 魏保强 | E11: 魏保强 | F11: 13385379688 | G11: 李广坤 | H11: 013466 | I11: 石子 | J11: 1--2 | K11: 49.56 | L11: 15.47 | M11: 34.09 | S11: 0.1T | T11: 33.9 | U11: 97 | V11: 3288.3 | W11: 冯海英 | X11: 聂恒光
A12: 8 | B12: 10:40:00 | C12: 鲁RM2498 | D12: 魏庆如 | E12: 崔伟标 | F12: 13061551313 | G12: 英良运输 | H12: 013467 | I12: 石子 | J12: 1--2 | K12: 50.23 | L12: 15.99 | M12: 34.24 | S12: 0.1T | T12: 34.1 | U12: 97 | V12: 3307.7 | W12: 冯海英 | X12: 聂恒光
A13: 9 | B13: 10:52:00 | C13: 鲁RN9839 | D13: 米强栋 | E13: 米强栋 | F13: 18953005713 | G13: 英良运输 | H13: 013468 | I13: 石子 | J13: 1--2 | K13: 49.01 | L13: 16.15 | M13: 32.86 | S13: 0.1T | T13: 32.7 | U13: 97 | V13: 3171.9 | W13: 冯海英 | X13: 聂恒光
A14: 10 | B14: 12:07:00 | C14: 鲁JA4773 | D14: 王双喜 | E14: 王恩军 | F14: 18653677018 | G14: 郑言克 | H14: 013469 | I14: 石子 | J14: 1--2 | K14: 49.32 | L14: 14.42 | M14: 34.9 | S14: 0.1T | T14: 34.8 | U14: 97 | V14: 3375.6 | W14: 冯海英 | X14: 聂恒光
A15: 11 | B15: 15:55:00 | C15: 鲁H27A96 | D15: 李福军 | E15: 任修杰 | F15: 15063781383 | G15: 巨野中联 | H15: 013470 | I15: 水泥 | J15: PO42.5 | K15: 49.33 | L15: 14.92 | M15: 34.41 | S15: 0.30% | T15: 34.3 | U15: 535 | V15: 18350.5 | W15: 冯海英 | X15: 聂恒光
A16: 12 | B16: 15:59:00 | C16: 鲁H9J293 | D16: 李金中 | E16: 黄继勋 | F16: 13753789226 | G16: 巨野中联 | H16: 013471 | I16: 水泥 | J16: PO42.5 | K16: 46.82 | L16: 18.33 | M16: 28.49 | S16: 0.30% | T16: 28.39 | U16: 535 | V16: 15188.65 | W16: 冯海英 | X16: 聂恒光
A17: 13 | B17: 16:04:00 | C17: 鲁JB2331 | D17: 王磊 | E17: 王磊 | F17: 15006574352 | G17: 郑言克 | H17: 013472 | I17: 石子 | J17: 1--2 | K17: 49.26 | L17: 14.62 | M17: 34.64 | S17: 0.1T | T17: 34.5 | U17: 97 | V17: 3346.5 | W17: 冯海英 | X17: 聂恒光
A18: 14 | B18: 16:07:00 | C18: 鲁RN9839 | D18: 米强栋 | E18: 米强栋 | F18: 18953005713 | G18: 英良运输 | H18: 013473 | I18: 石子 | J18: 1--2 | K18: 49.71 | L18: 16.08 | M18: 33.63 | S18: 0.1T | T18: 33.5 | U18: 97 | V18: 3249.5 | W18: 冯海英 | X18: 聂恒光
A19: 15 | B19: 16:09:00 | C19: 鲁H22H87 | D19: 魏保强 | E19: 魏保强 | F19: 13385379688 | G19: 李广坤 | H19: 013474 | I19: 石子 | J19: 1--2 | K19: 48.79 | L19: 15.43 | M19: 33.36 | S19: 0.1T | T19: 33.2 | U19: 97 | V19: 3220.4 | W19: 冯海英 | X19: 聂恒光
A20: 16 | B20: 16:13:00 | C20: 鲁RN5188 | D20: 李斌 | E20: 安孔青 | F20: 15163023899 | G20: 李广坤 | H20: 013475 | I20: 石子 | J20: 1--2 | K20: 27.08 | L20: 8.68 | M20: 18.4 | S20: 0.1T | T20: 18.3 | U20: 97 | V20: 1775.1 | W20: 冯海英 | X20: 聂恒光
A21: 17 | B21: 16:15:00 | C21: 鲁RL7377 | D21: 李斌 | E21: 常云龙 | F21: 18264007774 | G21: 李广坤 | H21: 013476 | I21: 石子 | J21: 1--2 | K21: 26.41 | L21: 8.59 | M21: 17.82 | S21: 0.1T | T21: 17.7 | U21: 97 | V21: 1716.9 | W21: 冯海英 | X21: 聂恒光
A22: 18 | B22: 16:17:00 | C22: 鲁RM2498 | D22: 魏庆如 | E22: 崔伟标 | F22: 13061551313 | G22: 英良运输 | H22: 013477 | I22: 石子 | J22: 1--2 | K22: 49.52 | L22: 15.95 | M22: 33.57 | S22: 0.1T | T22: 33.4 | U22: 97 | V22: 3239.8 | W22: 冯海英 | X22: 聂恒光
A23: 19 | B23: 20:11:00 | C23: 鲁RN9839 | D23: 米强栋 | E23: 米强栋 | F23: 18953005713 | G23: 英良运输 | H23: 013478 | I23: 石子 | J23: 1--2 | K23: 49.42 | L23: 16.04 | M23: 33.38 | S23: 0.1T | T23: 33.2 | U23: 97 | V23: 3220.4 | W23: 冯海英 | X23: 聂恒光
A24: 20 | B24: 21:37:00 | C24: 鲁RM2498 | D24: 魏庆如 | E24: 崔伟标 | F24: 13061551313 | G24: 英良运输 | H24: 013479 | I24: 石子 | J24: 1--2 | K24: 50.37 | L24: 15.9 | M24: 34.47 | S24: 0.1T | T24: 34.3 | U24: 97 | V24: 3327.1 | W24: 冯海英 | X24: 聂恒光
A25: 21 | B25: 22:14:00 | C25: 皖S56792 | D25: 陈平西 | E25: 吕长华 | F25: 18364082622 | G25: 英良运输 | H25: 013480 | I25: 机制沙 | J25: 中粗 | K25: 48.68 | L25: 16.31 | M25: 32.37 | S25: 0.1T | T25: 32.2 | U25: 139 | V25: 4475.8 | W25: 冯海英 | X25: 聂恒光
A26: 22 | M26: 0 | V26: 0
A27: 23 | M27: 0 | V27: 0
A28: 24 | M28: 0 | V28: 0
A29: 25 | M29: 0 | V29: 0
A30: 26 | M30: 0 | V30: 0
A31: 27 | M31: 0 | V31: 0
A32: 28 | M32: 0 | V32: 0
A33: 29 | M33: 0 | V33: 0
A34: 30 | M34: 0 | V34: 0
A35: 31 | M35: 0 | V35: 0
A36: 32 | M36: 0 | V36: 0
A37: 33 | M37: 0 | V37: 0
A38: 34 | M38: 0 | V38: 0
A39: 35 | M39: 0 | V39: 0
A40: 36 | M40: 0 | V40: 0
A41: 37 | M41: 0 | V41: 0
A42: 38 | M42: 0 | V42: 0
A43: 39 | M43: 0 | V43: 0
A44: 40 | M44: 0 | V44: 0
A45: 41 | M45: 0 | V45: 0
A46: 42 | M46: 0 | V46: =T46*U46 -> 0
A47: 43 | M47: 0 | V47: 0
A48: 44 | M48: 0 | V48: 0
A49: 45 | M49: 0 | V49: 0
A50: 46 | M50: 0 | V50: 0
A51: 47 | M51: 0 | V51: 0
A52: 48 | M52: 0 | V52: 0
A53: 49 | M53: 0 | V53: 0
A54: 50 | M54: 0 | V54: 0
A55: 51 | M55: 0 | V55: 0
A56: 52 | M56: 0 | V56: 0
A57: 53 | M57: 0 | V57: 0
A58: 54 | M58: 0 | V58: 0
A59: 55 | M59: 0 | V59: 0
A60: 56 | M60: 0 | V60: 0
A61: 57 | M61: 0 | V61: 0
A62: 58 | M62: 0 | V62: 0
A63: 59 | M63: 0 | V63: 0
A64: 60 | M64: 0 | V64: 0
A65: 61 | M65: 0 | V65: 0
A66: 62 | M66: 0 | V66: 0
A67: 63 | M67: 0 | V67: 0
A68: 64 | M68: 0 | V68: 0
A69: 65 | M69: =K69-L69 -> 0 | V69: 0
A70: 66 | M70: 0 | V70: 0
A71: 67 | M71: 0 | V71: 0
A72: 68 | M72: 0 | V72: 0
A73: 合计： | T73: 0 | V73: =SUM(V5:V72) -> 270906.95
